[Event "Late Titled Tuesday Blitz February 8 2022"]
[White "Nepomniachtchi, Ian"]
[Black "Ibarra Jerez, Jose Carlos"]
[WhiteFideId "4168119"]
[BlackFideId "2226332"]
[WhiteElo "2740"]
[BlackElo "2626"]
[Result "1-0"]
[Round "05"]
[TimeControl "180+1"]
[Date "2022.02.08"]
[WhiteClock "0:01:01"]
[BlackClock "0:00:19"]

1. e4 {[%clk 0:03:00]}  c5 {[%clk 0:02:56]} 2. Nf3 {[%clk 0:03:00]}  e6 {[%clk 0:02:55]} 3. d4 {[%clk 0:03:01]}  cxd4 {[%clk 0:02:55]} 4. Nxd4 {[%clk 0:03:02]}  Bc5 {[%clk 0:02:55]} 5. Nb3 {[%clk 0:02:57]}  Bb6 {[%clk 0:02:56]} 6. c4 {[%clk 0:02:55]}  Ne7 {[%clk 0:02:56]} 7. Nc3 {[%clk 0:02:54]}  O-O {[%clk 0:02:55]} 8. Be2 {[%clk 0:02:51]}  f5 {[%clk 0:02:54]} 9. O-O {[%clk 0:02:48]}  f4 {[%clk 0:02:54]} 10. c5 {[%clk 0:02:47]}  Bc7 {[%clk 0:02:54]} 11. Nb5 {[%clk 0:02:47]}  Be5 {[%clk 0:02:54]} 12. Bd2 {[%clk 0:02:38]}  Nbc6 {[%clk 0:02:52]} 13. Bc3 {[%clk 0:02:38]}  Ng6 {[%clk 0:02:52]} 14. Nd6 {[%clk 0:02:36]}  Bxc3 {[%clk 0:02:42]} 15. bxc3 {[%clk 0:02:36]}  b6 {[%clk 0:02:42]} 16. cxb6 {[%clk 0:02:23]}  axb6 {[%clk 0:02:40]} 17. c4 {[%clk 0:02:22]}  Nce5 {[%clk 0:02:38]} 18. f3 {[%clk 0:02:20]}  Ba6 {[%clk 0:02:36]} 19. Rc1 {[%clk 0:02:19]}  Nh4 {[%clk 0:02:34]} 20. Rf2 {[%clk 0:02:18]}  Qg5 {[%clk 0:02:19]} 21. Kh1 {[%clk 0:02:14]}  Rf6 {[%clk 0:02:19]} 22. c5 {[%clk 0:02:06]}  Bxe2 {[%clk 0:02:15]} 23. Qxe2 {[%clk 0:02:07]}  bxc5 {[%clk 0:01:34]} 24. Rxc5 {[%clk 0:02:08]}  Rh6 {[%clk 0:01:32]} 25. Qa6 {[%clk 0:01:42]}  Rf8 {[%clk 0:01:21]} 26. Rc8 {[%clk 0:01:42]}  Nhg6 {[%clk 0:01:17]} 27. Rxf8+ {[%clk 0:01:39]}  Nxf8 {[%clk 0:01:16]} 28. Qf1 {[%clk 0:01:15]}  Qg3 {[%clk 0:01:13]} 29. h3 {[%clk 0:01:11]}  g5 {[%clk 0:01:06]} 30. Nd4 {[%clk 0:01:08]}  Qh4 {[%clk 0:00:44]} 31. a4 {[%clk 0:01:05]}  Qg3 {[%clk 0:00:22]} 32. N6f5 {[%clk 0:01:00]}  exf5 {[%clk 0:00:19]} 33. Nxf5 {[%clk 0:01:01]} 1-0


[Site "https://www.chess.com"]

[Event "Late Titled Tuesday Blitz February 8 2022"]
[White "Noboa Silva, Kevin"]
[Black "Krsnik Cohar, Ivan Vihor"]
[WhiteFideId "3618471"]
[BlackFideId "14520044"]
[WhiteElo "2161"]
[BlackElo "2414"]
[Result "1/2-1/2"]
[Round "05"]
[TimeControl "180+1"]
[Date "2022.02.09"]
[WhiteClock "0:00:11"]
[BlackClock "0:00:21"]

1. d4 {[%clk 0:03:00]}  d5 {[%clk 0:02:59]} 2. c4 {[%clk 0:03:00]}  Bf5 {[%clk 0:03:00]} 3. Nc3 {[%clk 0:02:59]}  e6 {[%clk 0:03:00]} 4. cxd5 {[%clk 0:02:56]}  exd5 {[%clk 0:03:00]} 5. Bf4 {[%clk 0:02:49]}  c6 {[%clk 0:03:00]} 6. e3 {[%clk 0:02:49]}  Bd6 {[%clk 0:03:00]} 7. Bg3 {[%clk 0:02:49]}  Bxg3 {[%clk 0:03:00]} 8. hxg3 {[%clk 0:02:50]}  Nd7 {[%clk 0:03:00]} 9. Bd3 {[%clk 0:02:50]}  Bxd3 {[%clk 0:03:01]} 10. Qxd3 {[%clk 0:02:51]}  Ngf6 {[%clk 0:03:01]} 11. Nge2 {[%clk 0:02:51]}  Qb6 {[%clk 0:03:01]} 12. O-O-O {[%clk 0:02:51]}  h6 {[%clk 0:03:01]} 13. Nf4 {[%clk 0:02:48]}  O-O-O {[%clk 0:03:01]} 14. Kb1 {[%clk 0:02:48]}  Rhe8 {[%clk 0:03:01]} 15. Rc1 {[%clk 0:02:48]}  Kb8 {[%clk 0:03:00]} 16. f3 {[%clk 0:02:45]}  Re7 {[%clk 0:02:56]} 17. Rhe1 {[%clk 0:02:38]}  Rde8 {[%clk 0:02:56]} 18. g4 {[%clk 0:02:34]}  Qa5 {[%clk 0:02:55]} 19. Qd2 {[%clk 0:02:02]}  Nb6 {[%clk 0:02:53]} 20. b3 {[%clk 0:02:03]}  Qb4 {[%clk 0:02:47]} 21. Nd3 {[%clk 0:01:54]}  Qa3 {[%clk 0:02:35]} 22. Ne5 {[%clk 0:01:49]}  Nfd7 {[%clk 0:02:33]} 23. Nxd7+ {[%clk 0:01:43]}  Nxd7 {[%clk 0:02:31]} 24. e4 {[%clk 0:01:43]}  dxe4 {[%clk 0:02:29]} 25. fxe4 {[%clk 0:01:44]}  Nf6 {[%clk 0:02:25]} 26. Qf4+ {[%clk 0:01:38]}  Ka8 {[%clk 0:02:25]} 27. e5 {[%clk 0:01:33]}  Qa5 {[%clk 0:02:22]} 28. g5 {[%clk 0:01:10]}  hxg5 {[%clk 0:02:12]} 29. Qxg5 {[%clk 0:01:10]}  Nd5 {[%clk 0:02:13]} 30. Nxd5 {[%clk 0:01:09]}  Qxd5 {[%clk 0:02:14]} 31. Rc4 {[%clk 0:00:56]}  f6 {[%clk 0:02:12]} 32. Qg6 {[%clk 0:00:46]}  fxe5 {[%clk 0:02:08]} 33. dxe5 {[%clk 0:00:46]}  a6 {[%clk 0:02:02]} 34. Rce4 {[%clk 0:00:36]}  Rxe5 {[%clk 0:01:29]} 35. Qxe8+ {[%clk 0:00:35]}  Rxe8 {[%clk 0:01:30]} 36. Rxe8+ {[%clk 0:00:36]}  Ka7 {[%clk 0:01:30]} 37. R1e2 {[%clk 0:00:36]}  g5 {[%clk 0:01:29]} 38. R8e5 {[%clk 0:00:35]}  Qd3+ {[%clk 0:01:29]} 39. Kb2 {[%clk 0:00:36]}  c5 {[%clk 0:01:22]} 40. R5e4 {[%clk 0:00:25]}  a5 {[%clk 0:01:13]} 41. a4 {[%clk 0:00:24]}  Ka6 {[%clk 0:01:10]} 42. Re6+ {[%clk 0:00:19]}  b6 {[%clk 0:01:10]} 43. Re8 {[%clk 0:00:20]}  Qd5 {[%clk 0:01:03]} 44. R8e5 {[%clk 0:00:17]}  Qd4+ {[%clk 0:01:04]} 45. Ka3 {[%clk 0:00:16]}  g4 {[%clk 0:01:04]} 46. Ka2 {[%clk 0:00:16]}  c4 {[%clk 0:00:58]} 47. R5e4 {[%clk 0:00:16]}  cxb3+ {[%clk 0:00:58]} 48. Kxb3 {[%clk 0:00:16]}  Qd3+ {[%clk 0:00:58]} 49. Kb2 {[%clk 0:00:17]}  g3 {[%clk 0:00:57]} 50. Ka2 {[%clk 0:00:15]}  Qd5+ {[%clk 0:00:53]} 51. Kb2 {[%clk 0:00:15]}  Qc5 {[%clk 0:00:50]} 52. Kb3 {[%clk 0:00:15]}  Qc1 {[%clk 0:00:49]} 53. Ka2 {[%clk 0:00:15]}  Qd1 {[%clk 0:00:46]} 54. Kb2 {[%clk 0:00:15]}  Ka7 {[%clk 0:00:46]} 55. Ka2 {[%clk 0:00:14]}  Kb7 {[%clk 0:00:46]} 56. Kb2 {[%clk 0:00:15]}  Ka6 {[%clk 0:00:42]} 57. Ka2 {[%clk 0:00:15]}  Qc1 {[%clk 0:00:43]} 58. Kb3 {[%clk 0:00:15]}  Qb1+ {[%clk 0:00:42]} 59. Kc3 {[%clk 0:00:15]}  Kb7 {[%clk 0:00:41]} 60. Kd4 {[%clk 0:00:14]}  Qg1+ {[%clk 0:00:31]} 61. Ke5 {[%clk 0:00:13]}  Qf1 {[%clk 0:00:26]} 62. Ke6 {[%clk 0:00:10]}  b5 {[%clk 0:00:26]} 63. axb5 {[%clk 0:00:09]}  Kb6 {[%clk 0:00:26]} 64. Ke5 {[%clk 0:00:06]}  a4 {[%clk 0:00:26]} 65. Kd4 {[%clk 0:00:05]}  a3 {[%clk 0:00:24]} 66. Ra2 {[%clk 0:00:03]}  Qf2+ {[%clk 0:00:17]} 67. Rxf2 {[%clk 0:00:01]}  gxf2 {[%clk 0:00:18]} 68. Rf4 {[%clk 0:00:02]}  a2 {[%clk 0:00:18]} 69. Rxf2 {[%clk 0:00:02]}  a1=Q+ {[%clk 0:00:19]} 70. Ke3 {[%clk 0:00:03]}  Qe1+ {[%clk 0:00:19]} 71. Kf3 {[%clk 0:00:03]}  Kxb5 {[%clk 0:00:18]} 72. Re2 {[%clk 0:00:04]}  Qf1+ {[%clk 0:00:18]} 73. Rf2 {[%clk 0:00:04]}  Qd1+ {[%clk 0:00:18]} 74. Kg3 {[%clk 0:00:05]}  Kc5 {[%clk 0:00:19]} 75. Rf3 {[%clk 0:00:05]}  Kd5 {[%clk 0:00:20]} 76. Kh2 {[%clk 0:00:06]}  Ke4 {[%clk 0:00:20]} 77. Kg3 {[%clk 0:00:06]}  Qd7 {[%clk 0:00:20]} 78. Kf2 {[%clk 0:00:06]}  Qh7 {[%clk 0:00:20]} 79. Kg3 {[%clk 0:00:06]}  Qh6 {[%clk 0:00:20]} 80. Kf2 {[%clk 0:00:06]}  Qh4+ {[%clk 0:00:21]} 81. Kf1 {[%clk 0:00:07]}  Qh2 {[%clk 0:00:20]} 82. Kf2 {[%clk 0:00:07]}  Qh1 {[%clk 0:00:20]} 83. Kg3 {[%clk 0:00:07]}  Ke5 {[%clk 0:00:21]} 84. Kf2 {[%clk 0:00:07]}  Ke4 {[%clk 0:00:21]} 85. Kg3 {[%clk 0:00:08]}  Qe1+ {[%clk 0:00:22]} 86. Kh3 {[%clk 0:00:08]}  Ke5 {[%clk 0:00:22]} 87. Kh2 {[%clk 0:00:08]}  Qe2 {[%clk 0:00:22]} 88. Kh3 {[%clk 0:00:08]}  Qe1 {[%clk 0:00:22]} 89. Kh2 {[%clk 0:00:08]}  Qd1 {[%clk 0:00:23]} 90. Kg3 {[%clk 0:00:09]}  Qg1 {[%clk 0:00:23]} 91. Kh3 {[%clk 0:00:09]}  Ke4 {[%clk 0:00:23]} 92. Kg3 {[%clk 0:00:09]}  Qh1 {[%clk 0:00:24]} 93. Kf2 {[%clk 0:00:09]}  Kd4 {[%clk 0:00:24]} 94. Kg3 {[%clk 0:00:10]}  Kd5 {[%clk 0:00:24]} 95. Kf2 {[%clk 0:00:10]}  Qh4+ {[%clk 0:00:24]} 96. Kg1 {[%clk 0:00:10]}  Ke4 {[%clk 0:00:24]} 97. Kf1 {[%clk 0:00:10]}  Ke5 {[%clk 0:00:20]} 98. Kg1 {[%clk 0:00:10]}  Kd4 {[%clk 0:00:19]} 99. Kf1 {[%clk 0:00:11]}  Qg4 {[%clk 0:00:19]} 100. Kf2 {[%clk 0:00:11]}  Qh4+ {[%clk 0:00:19]} 101. Kf1 {[%clk 0:00:11]}  Kd5 {[%clk 0:00:20]} 102. Kg1 {[%clk 0:00:11]}  Ke6 {[%clk 0:00:20]} 103. Kf1 {[%clk 0:00:11]}  Kd7 {[%clk 0:00:20]} 104. Kg1 {[%clk 0:00:12]}  Qe1+ {[%clk 0:00:21]} 105. Kh2 {[%clk 0:00:12]}  Ke6 {[%clk 0:00:21]} 106. Kh3 {[%clk 0:00:11]}  Ke5 {[%clk 0:00:21]} 1/2-1/2


[Site "https://www.chess.com"]

[Event "Late Titled Tuesday Blitz February 8 2022"]
[White "Okike, David"]
[Black "Lopez Perdomo, Juan David"]
[WhiteFideId "8500134"]
[BlackFideId "4405137"]
[WhiteElo "2232"]
[BlackElo "1997"]
[Result "1-0"]
[Round "05"]
[TimeControl "180+1"]
[Date "2022.02.09"]
[WhiteClock "0:00:22"]
[BlackClock "0:00:07"]

1. e4 {[%clk 0:03:00]}  e6 {[%clk 0:03:00]} 2. d4 {[%clk 0:03:00]}  d5 {[%clk 0:02:58]} 3. Nc3 {[%clk 0:03:00]}  Bb4 {[%clk 0:02:58]} 4. e5 {[%clk 0:03:00]}  c5 {[%clk 0:02:58]} 5. a3 {[%clk 0:03:00]}  Ba5 {[%clk 0:02:59]} 6. b4 {[%clk 0:02:59]}  cxd4 {[%clk 0:02:59]} 7. Nb5 {[%clk 0:02:59]}  Bc7 {[%clk 0:02:59]} 8. f4 {[%clk 0:02:50]}  Nh6 {[%clk 0:02:58]} 9. Nf3 {[%clk 0:02:49]}  Nf5 {[%clk 0:02:58]} 10. Nfxd4 {[%clk 0:02:49]}  Nxd4 {[%clk 0:02:58]} 11. Qxd4 {[%clk 0:02:47]}  Bb6 {[%clk 0:02:48]} 12. Qd2 {[%clk 0:02:40]}  O-O {[%clk 0:02:46]} 13. Bb2 {[%clk 0:02:38]}  Bd7 {[%clk 0:02:40]} 14. Nd6 {[%clk 0:02:37]}  Ba4 {[%clk 0:02:31]} 15. Nxb7 {[%clk 0:02:23]}  Qc7 {[%clk 0:02:19]} 16. Nd6 {[%clk 0:02:20]}  Qxc2 {[%clk 0:02:19]} 17. Rc1 {[%clk 0:02:15]}  Qg6 {[%clk 0:01:42]} 18. Bd3 {[%clk 0:02:05]}  Qh6 {[%clk 0:01:42]} 19. Be2 {[%clk 0:01:46]}  Nc6 {[%clk 0:01:31]} 20. b5 {[%clk 0:01:37]}  Na5 {[%clk 0:01:30]} 21. Qb4 {[%clk 0:01:37]}  Bb3 {[%clk 0:01:04]} 22. Rc3 {[%clk 0:01:33]}  Ba2 {[%clk 0:01:03]} 23. Rh3 {[%clk 0:01:23]}  Qg6 {[%clk 0:01:03]} 24. Rg3 {[%clk 0:01:22]}  Qb1+ {[%clk 0:01:02]} 25. Bd1 {[%clk 0:01:15]}  Nc4 {[%clk 0:00:52]} 26. Bc3 {[%clk 0:01:10]}  Qc1 {[%clk 0:00:32]} 27. Nxc4 {[%clk 0:01:08]}  Bxc4 {[%clk 0:00:28]} 28. Bd2 {[%clk 0:01:07]}  Qa1 {[%clk 0:00:27]} 29. Be3 {[%clk 0:01:03]}  Rfc8 {[%clk 0:00:17]} 30. a4 {[%clk 0:00:53]}  Bxe3 {[%clk 0:00:14]} 31. Rxe3 {[%clk 0:00:52]}  Qd4 {[%clk 0:00:14]} 32. Rf3 {[%clk 0:00:48]}  a5 {[%clk 0:00:07]} 33. Qd2 {[%clk 0:00:47]}  Qe4+ {[%clk 0:00:07]} 34. Kf2 {[%clk 0:00:44]}  Qf5 {[%clk 0:00:06]} 35. h3 {[%clk 0:00:43]}  Rd8 {[%clk 0:00:02]} 36. g4 {[%clk 0:00:42]}  Qg6 {[%clk 0:00:02]} 37. Kg3 {[%clk 0:00:42]}  h5 {[%clk 0:00:02]} 38. Re1 {[%clk 0:00:41]}  hxg4 {[%clk 0:00:02]} 39. hxg4 {[%clk 0:00:41]}  d4 {[%clk 0:00:02]} 40. Qc2 {[%clk 0:00:35]}  Qxc2 {[%clk 0:00:01]} 41. Bxc2 {[%clk 0:00:35]}  d3 {[%clk 0:00:02]} 42. Bd1 {[%clk 0:00:35]}  Rac8 {[%clk 0:00:02]} 43. f5 {[%clk 0:00:31]}  d2 {[%clk 0:00:01]} 44. Ree3 {[%clk 0:00:29]}  Rd3 {[%clk 0:00:02]} 45. Rxd3 {[%clk 0:00:28]}  Bxd3 {[%clk 0:00:02]} 46. Rxd3 {[%clk 0:00:28]}  Rc4 {[%clk 0:00:01]} 47. Rxd2 {[%clk 0:00:28]}  Re4 {[%clk 0:00:01]} 48. f6 {[%clk 0:00:26]}  gxf6 {[%clk 0:00:01]} 49. exf6 {[%clk 0:00:23]}  Kh7 {[%clk 0:00:02]} 50. Bc2 {[%clk 0:00:23]}  Kh6 {[%clk 0:00:03]} 51. Bxe4 {[%clk 0:00:23]}  Kg5 {[%clk 0:00:04]} 52. b6 {[%clk 0:00:22]}  e5 {[%clk 0:00:05]} 53. b7 {[%clk 0:00:22]}  Kh6 {[%clk 0:00:06]} 54. b8=Q {[%clk 0:00:22]}  Kg5 {[%clk 0:00:06]} 55. Qxe5+ {[%clk 0:00:22]}  Kh6 {[%clk 0:00:07]} 56. Rh2# {[%clk 0:00:22]} 1-0


[Site "https://www.chess.com"]

[Event "Late Titled Tuesday Blitz February 8 2022"]
[White "Osiecki, Stanislaw"]
[Black "Lopez Del Alamo, Antonio"]
[WhiteFideId "1102990"]
[BlackFideId "2227339"]
[WhiteElo "2127"]
[BlackElo "2082"]
[Result "0-1"]
[Round "05"]
[TimeControl "180+1"]
[Date "2022.02.09"]
[WhiteClock "0:00:44"]
[BlackClock "0:01:01"]

1. e4 {[%clk 0:02:57]}  c5 {[%clk 0:02:59]} 2. c3 {[%clk 0:02:52]}  d5 {[%clk 0:02:57]} 3. e5 {[%clk 0:02:52]}  Nc6 {[%clk 0:02:55]} 4. d4 {[%clk 0:02:51]}  Bf5 {[%clk 0:02:54]} 5. Bd3 {[%clk 0:02:50]}  Bxd3 {[%clk 0:02:52]} 6. Qxd3 {[%clk 0:02:49]}  e6 {[%clk 0:02:53]} 7. Ne2 {[%clk 0:02:48]}  h5 {[%clk 0:02:52]} 8. O-O {[%clk 0:02:48]}  Nh6 {[%clk 0:02:52]} 9. Rd1 {[%clk 0:02:45]}  Nf5 {[%clk 0:02:49]} 10. a3 {[%clk 0:02:45]}  c4 {[%clk 0:02:48]} 11. Qh3 {[%clk 0:02:44]}  g6 {[%clk 0:02:34]} 12. Ng3 {[%clk 0:02:41]}  Nxg3 {[%clk 0:02:25]} 13. Qxg3 {[%clk 0:02:40]}  Be7 {[%clk 0:02:25]} 14. Nd2 {[%clk 0:02:37]}  Qb6 {[%clk 0:02:24]} 15. Nf3 {[%clk 0:02:37]}  O-O-O {[%clk 0:02:23]} 16. Bg5 {[%clk 0:02:29]}  Qxb2 {[%clk 0:02:11]} 17. Bxe7 {[%clk 0:02:28]}  Nxe7 {[%clk 0:02:12]} 18. Ng5 {[%clk 0:02:28]}  Rdf8 {[%clk 0:02:09]} 19. Rdb1 {[%clk 0:02:22]}  Qc2 {[%clk 0:02:07]} 20. Qf4 {[%clk 0:02:16]}  Qxc3 {[%clk 0:02:01]} 21. Nxf7 {[%clk 0:02:11]}  Nf5 {[%clk 0:01:50]} 22. Ng5 {[%clk 0:01:59]}  Qxd4 {[%clk 0:01:42]} 23. Nxe6 {[%clk 0:01:46]}  Qxf4 {[%clk 0:01:40]} 24. Nxf4 {[%clk 0:01:45]}  Ne7 {[%clk 0:01:38]} 25. Rd1 {[%clk 0:01:42]}  Rxf4 {[%clk 0:01:36]} 26. Rab1 {[%clk 0:01:39]}  Rhf8 {[%clk 0:01:33]} 27. f3 {[%clk 0:01:38]}  d4 {[%clk 0:01:30]} 28. Rb4 {[%clk 0:01:35]}  d3 {[%clk 0:01:29]} 29. Rc1 {[%clk 0:01:31]}  d2 {[%clk 0:01:26]} 30. Rd1 {[%clk 0:01:23]}  Rd8 {[%clk 0:01:24]} 31. Kf2 {[%clk 0:01:21]}  Nd5 {[%clk 0:01:19]} 32. Rb5 {[%clk 0:01:18]}  Nc3 {[%clk 0:01:16]} 33. Rc5+ {[%clk 0:01:18]}  Kb8 {[%clk 0:01:15]} 34. e6 {[%clk 0:00:49]}  Nxd1+ {[%clk 0:01:14]} 35. Kg3 {[%clk 0:00:49]}  Rff8 {[%clk 0:01:03]} 36. e7 {[%clk 0:00:47]}  Ne3 {[%clk 0:01:00]} 37. exf8=Q {[%clk 0:00:44]}  Rxf8 {[%clk 0:01:01]} 0-1


[Site "https://www.chess.com"]

[Event "Late Titled Tuesday Blitz February 8 2022"]
[White "Ozates, Tuna"]
[Black "Zivkovic, Nemanja"]
[WhiteFideId "6354521"]
[BlackFideId "942154"]
[WhiteElo "1872"]
[BlackElo "2388"]
[Result "0-1"]
[Round "05"]
[TimeControl "180+1"]
[Date "2022.02.09"]
[WhiteClock "0:01:58"]
[BlackClock "0:01:30"]

1. c4 {[%clk 0:03:00]}  Nf6 {[%clk 0:02:57]} 2. Nc3 {[%clk 0:02:58]}  c5 {[%clk 0:02:44]} 3. g3 {[%clk 0:02:55]}  d5 {[%clk 0:02:35]} 4. cxd5 {[%clk 0:02:54]}  Nxd5 {[%clk 0:02:36]} 5. Bg2 {[%clk 0:02:54]}  Nc7 {[%clk 0:02:35]} 6. Nf3 {[%clk 0:02:52]}  Nc6 {[%clk 0:02:35]} 7. O-O {[%clk 0:02:50]}  e5 {[%clk 0:02:36]} 8. d3 {[%clk 0:02:51]}  Be7 {[%clk 0:02:36]} 9. Be3 {[%clk 0:02:51]}  Be6 {[%clk 0:02:36]} 10. Rc1 {[%clk 0:02:51]}  Qd7 {[%clk 0:02:34]} 11. Qa4 {[%clk 0:02:51]}  O-O {[%clk 0:02:28]} 12. a3 {[%clk 0:02:40]}  f6 {[%clk 0:02:27]} 13. b4 {[%clk 0:02:36]}  cxb4 {[%clk 0:02:22]} 14. axb4 {[%clk 0:02:36]}  Bxb4 {[%clk 0:02:20]} 15. Ne4 {[%clk 0:02:25]}  b5 {[%clk 0:02:11]} 16. Qc2 {[%clk 0:02:18]}  Bd5 {[%clk 0:02:08]} 17. Nc5 {[%clk 0:02:18]}  Bxc5 {[%clk 0:02:08]} 18. Qxc5 {[%clk 0:02:19]}  Rab8 {[%clk 0:02:00]} 19. Nxe5 {[%clk 0:02:17]}  fxe5 {[%clk 0:01:46]} 20. Bxd5+ {[%clk 0:02:17]}  Nxd5 {[%clk 0:01:46]} 21. Qxc6 {[%clk 0:02:11]}  Qxc6 {[%clk 0:01:35]} 22. Rxc6 {[%clk 0:02:12]}  Nxe3 {[%clk 0:01:35]} 23. fxe3 {[%clk 0:02:06]}  Rxf1+ {[%clk 0:01:35]} 24. Kxf1 {[%clk 0:02:07]}  b4 {[%clk 0:01:36]} 25. Ke1 {[%clk 0:02:07]}  b3 {[%clk 0:01:36]} 26. Rc1 {[%clk 0:02:06]}  b2 {[%clk 0:01:32]} 27. Rb1 {[%clk 0:02:06]}  a5 {[%clk 0:01:33]} 28. Kd1 {[%clk 0:01:57]}  a4 {[%clk 0:01:33]} 29. Kc2 {[%clk 0:01:58]}  a3 {[%clk 0:01:33]} 30. d4 {[%clk 0:01:57]}  a2 {[%clk 0:01:33]} 31. Rxb2 {[%clk 0:01:58]}  Ra8 {[%clk 0:01:30]} 0-1


[Site "https://www.chess.com"]

[Event "Late Titled Tuesday Blitz February 8 2022"]
[White "Paravyan, David"]
[Black "Lin, Dachey"]
[WhiteFideId "4194985"]
[BlackFideId "2029650"]
[WhiteElo "2569"]
[BlackElo "2746"]
[Result "1-0"]
[Round "05"]
[TimeControl "180+1"]
[Date "2022.02.08"]
[WhiteClock "0:01:00"]
[BlackClock "0:00:25"]

1. e4 {[%clk 0:03:00]}  g6 {[%clk 0:02:59]} 2. d4 {[%clk 0:02:59]}  Bg7 {[%clk 0:02:59]} 3. Nf3 {[%clk 0:02:56]}  c6 {[%clk 0:03:00]} 4. Bd3 {[%clk 0:02:55]}  d5 {[%clk 0:03:00]} 5. exd5 {[%clk 0:02:55]}  cxd5 {[%clk 0:03:00]} 6. Bf4 {[%clk 0:02:56]}  Nf6 {[%clk 0:03:01]} 7. h3 {[%clk 0:02:56]}  O-O {[%clk 0:03:01]} 8. O-O {[%clk 0:02:56]}  Nc6 {[%clk 0:03:02]} 9. c3 {[%clk 0:02:56]}  Ne4 {[%clk 0:02:39]} 10. Nbd2 {[%clk 0:02:55]}  Bf5 {[%clk 0:02:35]} 11. Qc2 {[%clk 0:02:44]}  Rc8 {[%clk 0:02:33]} 12. Qb1 {[%clk 0:02:28]}  Nxd2 {[%clk 0:02:15]} 13. Bxd2 {[%clk 0:02:29]}  Bxd3 {[%clk 0:02:14]} 14. Qxd3 {[%clk 0:02:30]}  Re8 {[%clk 0:02:13]} 15. Rfe1 {[%clk 0:02:30]}  Qb6 {[%clk 0:02:02]} 16. Rab1 {[%clk 0:02:28]}  Na5 {[%clk 0:02:02]} 17. Bf4 {[%clk 0:02:22]}  Nc4 {[%clk 0:02:01]} 18. b3 {[%clk 0:02:15]}  Nd6 {[%clk 0:02:01]} 19. c4 {[%clk 0:02:04]}  dxc4 {[%clk 0:01:53]} 20. bxc4 {[%clk 0:02:05]}  Qa6 {[%clk 0:01:53]} 21. Bxd6 {[%clk 0:02:04]}  exd6 {[%clk 0:01:53]} 22. Rxe8+ {[%clk 0:02:02]}  Rxe8 {[%clk 0:01:54]} 23. Qb3 {[%clk 0:02:02]}  b6 {[%clk 0:01:49]} 24. a4 {[%clk 0:02:02]}  Rc8 {[%clk 0:01:48]} 25. Rc1 {[%clk 0:01:38]}  h6 {[%clk 0:01:37]} 26. g3 {[%clk 0:01:33]}  d5 {[%clk 0:01:25]} 27. c5 {[%clk 0:01:33]}  bxc5 {[%clk 0:01:25]} 28. Rxc5 {[%clk 0:01:17]}  Rxc5 {[%clk 0:01:14]} 29. dxc5 {[%clk 0:01:18]}  d4 {[%clk 0:01:15]} 30. Qd5 {[%clk 0:01:13]}  Bf8 {[%clk 0:00:44]} 31. c6 {[%clk 0:01:12]}  Qb6 {[%clk 0:00:38]} 32. Ne5 {[%clk 0:01:07]}  Qc7 {[%clk 0:00:26]} 33. Nxf7 {[%clk 0:01:02]}  d3 {[%clk 0:00:25]} 34. Ne5+ {[%clk 0:01:00]} 1-0


[Site "https://www.chess.com"]

[Event "Late Titled Tuesday Blitz February 8 2022"]
[White "Pesotskiy, Mikhail"]
[Black "Marcziter, Dmitrii"]
[WhiteFideId "34164453"]
[BlackFideId "13900765"]
[WhiteElo "2010"]
[BlackElo "2155"]
[Result "1-0"]
[Round "05"]
[TimeControl "180+1"]
[Date "2022.02.09"]
[WhiteClock "0:00:36"]
[BlackClock "0:00:49"]

1. d4 {[%clk 0:02:59]}  Nf6 {[%clk 0:02:56]} 2. c4 {[%clk 0:03:00]}  g6 {[%clk 0:02:55]} 3. Nc3 {[%clk 0:03:00]}  Bg7 {[%clk 0:02:56]} 4. e4 {[%clk 0:03:00]}  d6 {[%clk 0:02:57]} 5. f3 {[%clk 0:03:01]}  O-O {[%clk 0:02:57]} 6. Be3 {[%clk 0:03:02]}  Na6 {[%clk 0:02:54]} 7. Bd3 {[%clk 0:03:01]}  c5 {[%clk 0:02:53]} 8. Nge2 {[%clk 0:03:02]}  cxd4 {[%clk 0:02:49]} 9. Nxd4 {[%clk 0:03:02]}  Nc5 {[%clk 0:02:48]} 10. Be2 {[%clk 0:02:59]}  a5 {[%clk 0:02:48]} 11. O-O {[%clk 0:02:59]}  a4 {[%clk 0:02:47]} 12. b4 {[%clk 0:02:56]}  axb3 {[%clk 0:02:46]} 13. axb3 {[%clk 0:02:57]}  Rxa1 {[%clk 0:02:42]} 14. Qxa1 {[%clk 0:02:57]}  Nfd7 {[%clk 0:02:38]} 15. b4 {[%clk 0:02:56]}  Na6 {[%clk 0:02:37]} 16. Qa3 {[%clk 0:02:49]}  Ne5 {[%clk 0:02:27]} 17. Rc1 {[%clk 0:02:34]}  Nc7 {[%clk 0:02:26]} 18. Nd5 {[%clk 0:02:31]}  Ne6 {[%clk 0:02:23]} 19. Nb5 {[%clk 0:02:26]}  f5 {[%clk 0:02:12]} 20. exf5 {[%clk 0:02:17]}  gxf5 {[%clk 0:02:11]} 21. Qa8 {[%clk 0:01:42]}  f4 {[%clk 0:02:09]} 22. Bf2 {[%clk 0:01:42]}  Qe8 {[%clk 0:02:04]} 23. Nb6 {[%clk 0:01:40]}  Ng6 {[%clk 0:01:42]} 24. Nxc8 {[%clk 0:01:31]}  Qxc8 {[%clk 0:01:42]} 25. Qxc8 {[%clk 0:01:32]}  Rxc8 {[%clk 0:01:41]} 26. c5 {[%clk 0:01:33]}  d5 {[%clk 0:01:38]} 27. Na7 {[%clk 0:01:28]}  Ra8 {[%clk 0:01:35]} 28. c6 {[%clk 0:01:28]}  bxc6 {[%clk 0:01:35]} 29. Nxc6 {[%clk 0:01:29]}  Kf7 {[%clk 0:01:34]} 30. b5 {[%clk 0:01:29]}  Ne5 {[%clk 0:01:24]} 31. Nxe5+ {[%clk 0:01:16]}  Bxe5 {[%clk 0:01:24]} 32. b6 {[%clk 0:01:16]}  d4 {[%clk 0:01:21]} 33. Bc4 {[%clk 0:01:15]}  Kf6 {[%clk 0:01:20]} 34. Bh4+ {[%clk 0:01:07]}  Kf7 {[%clk 0:01:15]} 35. Re1 {[%clk 0:01:04]}  Rc8 {[%clk 0:01:04]} 36. Bd5 {[%clk 0:00:50]}  d3 {[%clk 0:00:54]} 37. Rxe5 {[%clk 0:00:49]}  d2 {[%clk 0:00:54]} 38. Bxe6+ {[%clk 0:00:48]}  Kf8 {[%clk 0:00:55]} 39. Bb3 {[%clk 0:00:42]}  Rc1+ {[%clk 0:00:52]} 40. Kf2 {[%clk 0:00:41]}  d1=Q {[%clk 0:00:51]} 41. Bxd1 {[%clk 0:00:41]}  Rxd1 {[%clk 0:00:51]} 42. Rb5 {[%clk 0:00:39]}  Rd8 {[%clk 0:00:49]} 43. b7 {[%clk 0:00:38]}  Rb8 {[%clk 0:00:50]} 44. Bg5 {[%clk 0:00:36]}  e5 {[%clk 0:00:49]} 45. Bf6 {[%clk 0:00:36]} 1-0


[Site "https://www.chess.com"]